{"text_format":"3","workbook":"xlsx","n_sheets":1,"sheets":["LISTA DE EQUIPAMENTO"],"not_rendered":{"defined_names":5},"read":"whole","date_system":"1900"}

{"sheet":"LISTA DE EQUIPAMENTO","index":0,"n_rows":9,"n_cols":19,"rows_kept":9,"merged":[[0,1,0,5],[0,6,0,9],[0,10,0,12],[0,13,0,14],[2,1,2,6],[2,7,2,18]]}
[null,"LISTA DE INVENTÁRIO DE EQUIPAMENTO"]
[]
[null,"CONDIÇÃO FÍSICA",{"$nulls":5},"STATUS FINANCEIRO"]
[null,"Ativo ou número de série","Descrição do item (fabricante e modelo)","Local","Condição","Fornecedor","Anos de serviço restantes ","Valor inicial","Entrada","Data da compra ou aluguel","Prazo do empréstimo em anos","Taxa do empréstimo","Pagamento mensal","Custos operacionais mensais","Custo mensal total","Valor esperado no final do prazo do empréstimo","Depreciação linear anual","Depreciação linear mensal","Valor atual"]
[null,123,"Fabricante e Modelo","Matriz","Boa","Local",5,{"v":60000,"d":"R$ 60,000.00"},{"v":10000,"d":"R$ 10,000.00"},{"$f":"DATE(YEAR(TODAY())-2, 1,1)","v":"2016-01-01"},4,{"v":0.1,"d":"10.00%"},{"$f":"IFERROR(IF(AND(Dados[[#This Row],[Valor inicial]]>0,Dados[[#This Row],[Valor inicial]]<>Dados[[#This Row],[Entrada]]),-1*PMT(Dados[[#This Row],[Taxa do empréstimo]]/12,Dados[[#This Row],[Prazo do empréstimo em anos]]*12,Dados[[#This Row],[Valor inicial]]-Dados[[#This Row],[Entrada]]),0),0)","v":{"v":1268.1291717373595,"d":"R$ 1,268.13"}},{"v":400,"d":"R$ 400.00"},{"$f":"IFERROR(Dados[[#This Row],[Custos operacionais mensais]]+Dados[[#This Row],[Pagamento mensal]],\"\")","v":{"v":1668.1291717373595,"d":"R$ 1,668.13"}},{"v":40000,"d":"R$ 40,000.00"},{"$f":"IFERROR(IF(Dados[[#This Row],[Valor inicial]]>0,SLN(Dados[[#This Row],[Valor inicial]],Dados[[#This Row],[Valor esperado no final do prazo do empréstimo]],Dados[[#This Row],[Anos de serviço restantes ]]),0),0)","v":{"v":4000,"d":"R$ 4,000.00"}},{"$f":"IFERROR(Dados[[#This Row],[Depreciação linear anual]]/12,0)","v":{"v":333.3333333333333,"d":"R$ 333.33"}},{"$f":"IFERROR(Dados[[#This Row],[Valor inicial]]-(Dados[[#This Row],[Depreciação linear anual]]*((TODAY()-Dados[[#This Row],[Data da compra ou aluguel]])/365)),0)","v":{"v":50027.397260273974,"d":"R$ 50,027.40"}}]
[null,456,"Fabricante e Modelo","Matriz","Excelente","Local",3,{"v":10000,"d":"R$ 10,000.00"},{"v":10000,"d":"R$ 10,000.00"},{"$f":"DATE(YEAR(TODAY())-1, 1,1)","v":"2017-01-01"},null,null,{"$f":"IFERROR(IF(AND(Dados[[#This Row],[Valor inicial]]>0,Dados[[#This Row],[Valor inicial]]<>Dados[[#This Row],[Entrada]]),-1*PMT(Dados[[#This Row],[Taxa do empréstimo]]/12,Dados[[#This Row],[Prazo do empréstimo em anos]]*12,Dados[[#This Row],[Valor inicial]]-Dados[[#This Row],[Entrada]]),0),0)","v":{"v":0,"d":"R$ 0.00"}},{"v":40,"d":"R$ 40.00"},{"$f":"IFERROR(Dados[[#This Row],[Custos operacionais mensais]]+Dados[[#This Row],[Pagamento mensal]],\"\")","v":{"v":40,"d":"R$ 40.00"}},null,{"$f":"IFERROR(IF(Dados[[#This Row],[Valor inicial]]>0,SLN(Dados[[#This Row],[Valor inicial]],Dados[[#This Row],[Valor esperado no final do prazo do empréstimo]],Dados[[#This Row],[Anos de serviço restantes ]]),0),0)","v":{"v":3333.3333333333335,"d":"R$ 3,333.33"}},{"$f":"IFERROR(Dados[[#This Row],[Depreciação linear anual]]/12,0)","v":{"v":277.77777777777777,"d":"R$ 277.78"}},{"$f":"IFERROR(Dados[[#This Row],[Valor inicial]]-(Dados[[#This Row],[Depreciação linear anual]]*((TODAY()-Dados[[#This Row],[Data da compra ou aluguel]])/365)),0)","v":{"v":5031.963470319634,"d":"R$ 5,031.96"}}]
[null,789,"Fabricante e Modelo","Filial leste","Regular","Local",6,{"v":100000,"d":"R$ 100,000.00"},{"v":40000,"d":"R$ 40,000.00"},{"$f":"TODAY()","v":"2018-06-29"},5,{"v":0.05,"d":"5.00%"},{"$f":"IFERROR(IF(AND(Dados[[#This Row],[Valor inicial]]>0,Dados[[#This Row],[Valor inicial]]<>Dados[[#This Row],[Entrada]]),-1*PMT(Dados[[#This Row],[Taxa do empréstimo]]/12,Dados[[#This Row],[Prazo do empréstimo em anos]]*12,Dados[[#This Row],[Valor inicial]]-Dados[[#This Row],[Entrada]]),0),0)","v":{"v":1132.274018640656,"d":"R$ 1,132.27"}},{"v":80,"d":"R$ 80.00"},{"$f":"IFERROR(Dados[[#This Row],[Custos operacionais mensais]]+Dados[[#This Row],[Pagamento mensal]],\"\")","v":{"v":1212.274018640656,"d":"R$ 1,212.27"}},{"v":3000,"d":"R$ 3,000.00"},{"$f":"IFERROR(IF(Dados[[#This Row],[Valor inicial]]>0,SLN(Dados[[#This Row],[Valor inicial]],Dados[[#This Row],[Valor esperado no final do prazo do empréstimo]],Dados[[#This Row],[Anos de serviço restantes ]]),0),0)","v":{"v":16166.666666666666,"d":"R$ 16,166.67"}},{"$f":"IFERROR(Dados[[#This Row],[Depreciação linear anual]]/12,0)","v":{"v":1347.2222222222222,"d":"R$ 1,347.22"}},{"$f":"IFERROR(Dados[[#This Row],[Valor inicial]]-(Dados[[#This Row],[Depreciação linear anual]]*((TODAY()-Dados[[#This Row],[Data da compra ou aluguel]])/365)),0)","v":{"v":100000,"d":"R$ 100,000.00"}}]
[{"$nulls":12},{"$f":"IFERROR(IF(AND(Dados[[#This Row],[Valor inicial]]>0,Dados[[#This Row],[Valor inicial]]<>Dados[[#This Row],[Entrada]]),-1*PMT(Dados[[#This Row],[Taxa do empréstimo]]/12,Dados[[#This Row],[Prazo do empréstimo em anos]]*12,Dados[[#This Row],[Valor inicial]]-Dados[[#This Row],[Entrada]]),0),0)","v":{"v":0,"d":"R$ 0.00"}},null,{"$f":"IFERROR(Dados[[#This Row],[Custos operacionais mensais]]+Dados[[#This Row],[Pagamento mensal]],\"\")","v":{"v":0,"d":"R$ 0.00"}},null,{"$f":"IFERROR(IF(Dados[[#This Row],[Valor inicial]]>0,SLN(Dados[[#This Row],[Valor inicial]],Dados[[#This Row],[Valor esperado no final do prazo do empréstimo]],Dados[[#This Row],[Anos de serviço restantes ]]),0),0)","v":{"v":0,"d":"R$ 0.00"}},{"$f":"IFERROR(Dados[[#This Row],[Depreciação linear anual]]/12,0)","v":{"v":0,"d":"R$ 0.00"}},{"$f":"IFERROR(Dados[[#This Row],[Valor inicial]]-(Dados[[#This Row],[Depreciação linear anual]]*((TODAY()-Dados[[#This Row],[Data da compra ou aluguel]])/365)),0)","v":{"v":0,"d":"R$ 0.00"}}]
[{"$nulls":12},{"$f":"IFERROR(IF(AND(Dados[[#This Row],[Valor inicial]]>0,Dados[[#This Row],[Valor inicial]]<>Dados[[#This Row],[Entrada]]),-1*PMT(Dados[[#This Row],[Taxa do empréstimo]]/12,Dados[[#This Row],[Prazo do empréstimo em anos]]*12,Dados[[#This Row],[Valor inicial]]-Dados[[#This Row],[Entrada]]),0),0)","v":{"v":0,"d":"R$ 0.00"}},null,{"$f":"IFERROR(Dados[[#This Row],[Custos operacionais mensais]]+Dados[[#This Row],[Pagamento mensal]],\"\")","v":{"v":0,"d":"R$ 0.00"}},null,{"$f":"IFERROR(IF(Dados[[#This Row],[Valor inicial]]>0,SLN(Dados[[#This Row],[Valor inicial]],Dados[[#This Row],[Valor esperado no final do prazo do empréstimo]],Dados[[#This Row],[Anos de serviço restantes ]]),0),0)","v":{"v":0,"d":"R$ 0.00"}},{"$f":"IFERROR(Dados[[#This Row],[Depreciação linear anual]]/12,0)","v":{"v":0,"d":"R$ 0.00"}},{"$f":"IFERROR(Dados[[#This Row],[Valor inicial]]-(Dados[[#This Row],[Depreciação linear anual]]*((TODAY()-Dados[[#This Row],[Data da compra ou aluguel]])/365)),0)","v":{"v":0,"d":"R$ 0.00"}}]